bitfinex-derivatives/quotes_BNBF0:USTF0_20250425
["timestamp","ask_amount","ask_price","bid_price","bid_amount"]
[1745579723582,1.37145427,608.1,605.8,1.0505215]
[1745579723884,1.37145427,608.09,605.81,0.30280285]
[1745579724081,2.50512977,608.08,605.81,0.30280285]
[1745579724284,1.37145427,608.07,605.81,0.30280285]
[1745579724487,1.37145427,608.06,605.81,0.30280285]
[1745579724683,2.50512977,608.05,605.81,0.30280285]
[1745579724883,1.37145427,608.04,605.81,0.30280285]
[1745579725085,2.50512977,608.03,605.81,0.30280285]
[1745579725386,1.37145427,608.02,605.81,0.30280285]
[1745579725583,1.37145427,608.01,605.81,0.30280285]
[1745579725883,1.37145427,608.0,605.81,0.30280285]
[1745579726088,2.50512977,607.99,605.81,0.30280285]
[1745579726283,2.50512977,607.98,605.81,0.30280285]
[1745579726487,1.37145427,607.97,605.7,0.30280285]
[1745579726687,1.37145427,607.96,605.71,0.30280285]
[1745579726887,1.37145427,607.95,605.72,0.30280285]
[1745579727085,1.37145427,607.94,605.73,0.30280285]
[1745579727281,2.50512977,607.93,605.7,0.30280285]
[1745579727482,1.37145427,607.92,605.7,0.30280285]
[1745579727686,1.37145427,607.91,605.7,0.30280285]
[1745579727888,2.50512977,607.9,605.7,0.30280285]
[1745579728087,1.37145427,607.89,605.7,0.30280285]
[1745579728287,2.50512977,607.88,605.7,0.30280285]
[1745579728503,1.37145427,607.87,605.7,0.30280285]
[1745579728793,2.50512977,607.86,605.7,0.30280285]
[1745579728984,1.37145427,607.85,605.7,0.30280285]
[1745579729181,1.37145427,607.84,605.7,0.30280285]
[1745579729381,1.37145427,607.83,605.7,0.30280285]
[1745579729586,1.37145427,607.82,605.7,0.30280285]
[1745579729783,1.37145427,607.81,605.7,0.30280285]
[1745579729983,1.37145427,607.8,605.7,0.30280285]
[1745579730282,2.50512977,607.79,605.7,0.30280285]
[1745579730484,1.37145427,607.78,605.71,0.30280285]
[1745579730683,2.50512977,607.77,605.72,0.30280285]
[1745579730886,1.37145427,607.76,605.69,0.28677261]
[1745579731085,1.37145427,607.75,605.7,0.30278717]
[1745579731285,2.50512977,607.74,605.71,0.30278717]
[1745579731485,1.37145427,607.73,605.72,0.30278717]
[1745579731687,2.50512977,607.72,605.73,0.30278717]
[1745579731987,1.37145427,607.71,605.74,0.30278717]
[1745579732189,2.50512977,607.7,605.84,1.0505215]
[1745579732490,1.37145427,607.69,605.85,0.30278665]
[1745579732687,2.50512977,607.68,605.85,0.30278665]
[1745579732884,1.37145427,607.67,605.85,0.30278665]
[1745579733085,1.37145427,607.66,605.85,0.30278665]
[1745579733288,1.37145427,607.65,605.85,0.30278665]
[1745579733483,2.50512977,607.64,605.85,0.30278665]
[1745579733791,1.37145427,607.63,605.85,0.30278665]
[1745579734088,1.37145427,607.62,605.85,0.30278665]
[1745579734389,2.50512977,607.61,605.85,0.30278665]
[1745579734589,1.37145427,607.6,605.99,1.0505215]
[1745579734787,2.50512977,607.59,606.0,0.30278665]
[1745579734988,1.37145427,607.58,606.0,0.30278665]
[1745579735184,2.50512977,607.57,606.0,0.30278665]
[1745579735383,1.37145427,607.56,606.0,0.30278665]
[1745579735699,2.50512977,607.55,606.0,0.30278665]
[1745579735895,1.37145427,607.54,606.0,0.30278665]
[1745579736086,1.37145427,607.53,606.0,0.30278665]
[1745579736290,1.37145427,607.52,606.0,0.30278665]
[1745579736587,1.36797473,607.51,606.0,0.30278665]
[1745579736794,2.50165023,607.5,606.0,0.30278665]
[1745579736989,1.36797473,607.49,605.99,1.0505215]
[1745579737190,1.36797473,607.48,606.0,0.30275049]
[1745579737387,1.36797473,607.47,606.0,0.30275049]
[1745579737590,2.50165023,607.46,606.06,1.0505215]
[1745579737788,2.50165023,607.45,606.07,0.30275049]
[1745579737992,1.36797473,607.44,606.07,0.30275049]
[1745579738193,1.36797473,607.43,606.07,0.30275049]
[1745579738496,2.50165023,607.42,606.07,0.30275049]
[1745579738696,1.36797473,607.41,606.07,0.30275049]
[1745579738894,2.50165023,607.4,606.07,0.30275049]
[1745579739089,1.36797473,607.39,606.07,0.30275049]
[1745579739389,2.50165023,607.38,606.07,0.30275049]
[1745579739590,1.36797473,607.37,606.07,0.30275049]
[1745579739791,2.50165023,607.36,606.07,0.30275049]
[1745579739995,2.50165023,607.35,606.07,1.35327199]
[1745579740294,1.36797473,607.34,606.08,0.30275631]
[1745579740497,1.36797473,607.33,606.08,0.30275631]
[1745579740700,1.36797473,607.32,606.08,0.30275631]
[1745579740996,2.50165023,607.31,606.08,0.30275631]
[1745579741193,2.50165023,607.3,606.08,0.30275631]
[1745579741494,1.36797473,607.29,606.08,0.30275631]
[1745579741695,2.50165023,607.28,606.08,0.30275631]
[1745579741993,1.36797473,607.27,606.08,0.30275631]
[1745579742289,2.50165023,607.26,606.08,0.30275631]
[1745579742490,1.36797473,607.25,606.08,0.30275631]
[1745579742693,1.36797473,607.24,606.08,0.30275631]
[1745579742896,1.36797473,607.23,606.08,0.30275631]
[1745579743205,2.50165023,607.22,606.08,0.30275631]
[1745579743395,2.50165023,607.21,606.08,0.30275631]
[1745579743596,1.36797473,607.2,606.08,0.30275631]
[1745579743791,2.50165023,607.19,606.08,0.30275631]
[1745579744003,1.36797473,607.18,606.08,0.30275631]
[1745579744196,1.36797473,607.17,606.03,0.30275631]
[1745579744495,2.50165023,607.16,606.04,0.30275631]
[1745579744696,2.50165023,607.15,606.03,0.30275631]
[1745579744899,1.36797473,607.14,606.03,0.30275631]
[1745579745096,2.50165023,607.13,606.03,0.30275631]
[1745579745323,1.36797473,607.12,606.03,0.30275631]
[1745579745597,2.50165023,607.11,606.03,0.30275631]
[1745579745792,1.36797473,607.1,606.03,0.30275631]
[1745579745991,2.50165023,607.09,606.03,0.30275631]
[1745579746195,1.36797473,607.08,606.02,0.28681988]
[1745579746394,1.36797473,607.08,606.03,0.30278392]
[1745579746597,1.1336755,607.07,606.03,0.30278392]
[1745579746797,1.36797473,607.06,605.95,0.30278392]
[1745579747091,1.1336755,607.05,605.96,0.30278392]
[1745579747295,1.36797473,607.04,605.97,0.30278392]
[1745579747491,1.1336755,607.03,605.98,0.30278392]
[1745579747692,1.36797473,607.02,605.99,0.30278392]
[1745579747893,1.1336755,607.01,605.98,0.28685535]
[1745579748096,1.36797473,607.0,605.99,0.30278392]
[1745579748498,1.1336755,606.99,605.98,0.28685535]
[1745579748695,2.50165023,606.98,605.99,0.30278507]
[1745579748898,2.50165023,606.97,605.99,0.30278507]
[1745579749100,1.36797473,606.96,605.99,0.30278507]
[1745579749301,1.36847654,606.96,605.99,0.30278507]
[1745579749509,1.36847654,606.95,605.99,0.30278507]
[1745579749698,1.36847654,606.94,605.99,0.30278507]
[1745579750006,1.36847654,606.93,605.99,0.30278507]
[1745579750300,1.1336755,606.92,605.99,0.30278507]
[1745579750596,1.25820987,608.36,605.99,0.30278507]
[1745579750597,2.50215204,606.91,605.99,0.30278507]
[1745579750800,1.36847654,606.9,605.99,0.30278507]
[1745579750999,1.36921923,606.89,605.99,0.30278507]
[1745579751201,2.50289473,606.88,605.99,0.30278507]
[1745579751401,1.36921923,606.87,605.99,0.30278507]
[1745579751601,2.50289473,606.87,605.99,0.30278507]
[1745579751903,2.50289473,606.86,606.04,1.0505215]
[1745579752099,1.36921923,606.85,606.05,0.30278507]
[1745579752625,1.1336755,606.84,606.05,0.30278507]
[1745579753100,1.1336755,606.83,606.05,0.30278507]
[1745579753601,1.1336755,606.82,606.05,0.30278507]
[1745579754201,1.1336755,606.81,606.05,0.30278507]
[1745579754504,1.1336755,606.8,606.05,0.30278507]
[1745579754901,1.1336755,606.79,606.05,0.30278507]
[1745579755198,1.1336755,606.78,606.06,1.0505215]
[1745579755604,1.1336755,606.77,606.07,0.30280307]
[1745579755905,1.1336755,606.76,606.07,0.30280307]
[1745579756201,1.1336755,606.75,606.07,0.30280307]
[1745579756406,1.1336755,606.75,606.06,1.0505215]
[1745579756606,1.1336755,606.75,606.07,0.30281056]
[1745579757007,1.1336755,606.74,606.07,0.30281056]
[1745579757403,1.1336755,606.73,606.07,0.30281056]
[1745579757903,1.1336755,606.73,606.04,0.30281056]
[1745579758104,1.1336755,606.72,606.05,0.30281056]
[1745579758305,1.1336755,606.72,606.04,0.30281056]
[1745579758501,1.1336755,606.71,606.0,1.0505215]
[1745579758702,1.1336755,606.71,606.01,0.30278952]
[1745579759002,1.1336755,606.7,606.03,0.28688727]
[1745579759204,1.1336755,606.7,606.04,0.30278952]
[1745579759501,1.1336755,606.69,606.04,0.30278952]
[1745579760004,1.1336755,606.68,606.04,0.30278952]
[1745579760309,1.25820987,608.19,606.05,0.30277539]
[1745579760603,2.1407043,608.91,606.03,0.28688727]
[1745579760604,1.3747365,608.18,606.06,0.30273982]
[1745579760806,1.3747365,608.17,606.04,0.30273982]
[1745579761007,1.3747365,608.16,606.05,0.30273982]
[1745579761200,1.3747365,608.15,606.03,0.28688727]
[1745579761404,2.51066886,608.14,606.04,0.30272041]
[1745579761706,1.3747365,608.13,606.04,0.30272041]
[1745579761906,1.3747365,608.12,606.04,0.30272041]
[1745579762104,1.3747365,608.11,606.04,0.30272041]
[1745579762405,1.3747365,608.1,606.04,0.30272041]
[1745579762603,2.51066886,608.09,606.04,0.30272041]
[1745579762801,1.3747365,608.08,606.03,0.28668166]
[1745579762999,1.3747365,608.07,606.04,0.30275401]
[1745579763309,1.3747365,608.06,606.04,0.30275401]
[1745579763503,1.3747365,608.05,606.04,0.30275401]
[1745579763703,1.3747365,608.04,606.04,1.31675401]
[1745579763900,1.3747365,608.03,606.05,0.30275401]
[1745579764201,2.51066886,608.02,606.04,1.014]
[1745579764407,1.3747365,608.01,606.05,0.30275181]
[1745579764703,1.3747365,608.0,606.05,0.30275181]
[1745579764907,1.3747365,607.99,606.04,1.014]
[1745579765101,1.3747365,607.98,606.05,0.3027429]
[1745579765303,2.51066886,607.97,606.05,0.3027429]
[1745579765499,1.3747365,607.96,606.05,0.3027429]
[1745579765703,2.51066886,607.95,606.04,2.229]
[1745579766003,1.3747365,607.94,606.05,0.30274286]
[1745579766199,1.3747365,607.93,606.05,0.30274286]
[1745579766404,1.3747365,607.92,606.05,0.30274286]
[1745579766600,1.3747365,607.91,606.05,0.30274286]
[1745579766802,1.3761404,607.9,606.05,0.30274286]
[1745579767006,1.3761404,607.89,606.05,0.30274286]
[1745579767304,1.3761404,607.88,606.05,0.30274286]
[1745579767503,1.3761404,607.87,606.05,0.30274286]
[1745579767706,1.3761404,607.86,606.05,0.30274286]
[1745579768006,2.51207276,607.85,606.05,0.30274286]
[1745579768207,2.51207276,607.84,606.05,0.30274286]
[1745579768402,1.3761404,607.83,606.05,1.24774286]
[1745579768606,2.51207276,607.82,606.06,0.30274286]
[1745579768811,1.3761404,607.81,606.06,0.30274286]
[1745579769004,2.51207276,607.8,606.06,0.30274286]
[1745579769208,1.3761404,607.79,606.06,0.30274286]
[1745579769404,1.13593236,607.8,606.06,0.30274286]
[1745579769405,2.51207276,607.78,606.06,0.30274286]
[1745579769607,2.51207276,607.77,606.06,0.30274286]
[1745579769810,2.51207276,607.76,606.06,0.30274286]
[1745579770004,1.3761404,607.75,606.06,0.30274286]
[1745579770204,1.3761404,607.74,606.06,0.30274286]
[1745579770410,1.3766608,607.73,606.06,0.30274286]
[1745579770613,1.3766608,607.72,606.06,0.30274286]
[1745579770908,2.51259316,607.71,606.06,0.30274286]
[1745579771131,1.3766608,607.7,606.06,0.30274286]
[1745579771315,1.3766608,607.69,606.06,0.30274286]
[1745579771509,2.51259316,607.68,606.06,0.30274286]
[1745579771711,2.51259316,607.67,606.06,0.30274286]
[1745579771908,2.51259316,607.67,606.05,0.945]
[1745579771909,1.3766608,607.66,606.05,0.945]
[1745579772112,1.3766608,607.65,606.06,0.30275176]
[1745579772313,1.3766608,607.64,606.06,0.30275176]
[1745579772513,2.51259316,607.63,606.06,0.30275176]
[1745579772712,1.3766608,607.62,606.06,0.30275176]
[1745579772910,1.3766608,607.61,606.06,0.30275176]
[1745579773113,2.51259316,607.6,606.06,0.30275176]
[1745579773310,1.3766608,607.59,606.06,0.30275176]
[1745579773511,1.3766608,607.58,606.06,0.30275176]
[1745579773713,2.51259316,607.57,606.06,0.30275176]
[1745579773910,1.3766608,607.56,606.06,0.30275176]
[1745579774215,2.51352759,607.55,606.06,0.30275176]
[1745579774415,2.51352759,607.54,606.06,0.30275176]
[1745579774610,1.37759523,607.53,606.06,0.30275176]
[1745579774810,1.37759523,607.52,606.06,0.30275176]
[1745579775014,1.37759523,607.51,606.06,0.30275176]
[1745579775215,2.51352759,607.5,606.06,0.30275176]
[1745579775410,2.51352759,607.49,606.06,0.30275176]
[1745579775609,2.51352759,607.48,606.06,0.30275176]
[1745579775814,1.37759523,607.47,606.06,0.30275176]
[1745579776015,1.37759523,607.46,606.06,0.30275176]
[1745579776316,1.37759523,607.45,606.06,0.30275176]
[1745579776512,1.37759523,607.44,606.05,0.945]
[1745579776716,1.37759523,607.43,606.05,0.945]
[1745579777015,1.37759523,607.42,606.05,0.945]
[1745579777215,2.51352759,607.41,606.05,0.945]
[1745579777420,1.37759523,607.4,606.06,0.30278494]
[1745579777615,1.13593236,607.41,606.06,0.30278494]
[1745579777818,2.51516729,607.4,606.06,0.30278494]
[1745579778017,1.37923493,607.39,606.06,0.30278494]
[1745579778217,1.37923493,607.38,606.06,0.30278494]
[1745579778417,1.13593236,607.39,606.05,0.945]
[1745579778418,1.37923493,607.37,606.05,0.945]
[1745579778620,2.51516729,607.36,606.05,0.945]
[1745579778819,2.51516729,607.35,606.05,0.945]
[1745579779022,1.37923493,607.34,606.05,0.945]
[1745579779221,1.37923493,607.33,606.05,0.945]
[1745579779416,1.13593236,607.32,606.05,0.945]
[1745579779720,2.51537746,607.31,606.05,0.945]
[1745579779920,2.51537746,607.3,606.05,0.945]
[1745579780121,1.3794451,607.29,606.05,0.945]
[1745579780320,2.51537746,607.28,606.05,0.945]
[1745579780514,1.3794451,607.27,606.05,0.945]
[1745579780719,2.51537746,607.26,606.05,0.945]
[1745579780916,1.3794451,607.25,606.05,0.945]
[1745579781118,1.3794451,607.24,606.05,0.945]
[1745579781318,1.3794451,607.23,606.05,0.945]
[1745579781521,1.3794451,607.22,606.05,0.945]
[1745579781726,1.3794451,607.21,606.05,0.945]
[1745579782027,2.51537746,607.2,606.05,0.945]
[1745579782226,2.51537746,607.19,606.06,0.30281914]
[1745579782427,2.51490808,607.18,606.05,0.945]
[1745579782723,1.37897572,607.17,606.05,0.945]
[1745579782923,2.51490808,607.16,606.05,0.945]
[1745579783221,1.37897572,607.15,606.05,0.945]
[1745579783422,2.51490808,607.14,606.05,0.945]
[1745579783626,1.37897572,607.13,606.05,0.945]
[1745579783923,2.51490808,607.12,606.05,0.945]
[1745579784122,1.37897572,607.11,606.05,0.945]
[1745579784343,1.37897572,607.1,606.05,0.945]
[1745579784524,2.51490808,607.09,606.05,0.945]
[1745579784724,1.37897572,607.08,606.05,0.945]
[1745579784929,1.37897572,607.07,606.05,0.945]
[1745579785130,1.37897572,607.06,606.05,0.945]
[1745579785327,1.37897572,607.05,606.05,0.945]
[1745579785528,1.37897572,607.04,606.05,0.945]
[1745579785727,1.37897572,607.03,606.05,0.945]
[1745579786022,2.51490808,607.02,606.05,0.945]
[1745579786224,1.37897572,607.01,606.05,0.945]
[1745579786426,2.51490808,607.0,606.05,0.945]
[1745579786627,2.51490808,606.99,606.05,0.945]
[1745579786828,1.37897572,606.98,606.05,0.945]
[1745579787026,1.37897572,606.97,606.05,0.945]
[1745579787225,2.51490808,606.96,606.05,0.945]
[1745579787429,1.37897572,606.95,606.05,0.945]
[1745579787631,1.37897572,606.94,606.05,0.945]
[1745579787931,2.51490808,606.93,606.05,0.945]
[1745579788233,2.51490808,606.92,606.05,0.945]
[1745579788532,1.37897572,606.91,606.05,0.945]
[1745579788731,1.37897572,606.9,606.05,0.945]
[1745579788932,2.51490808,606.89,606.05,0.945]
[1745579789127,1.37897572,606.88,606.05,0.945]
[1745579789331,1.37897572,606.87,606.05,0.945]
[1745579789630,1.37897572,606.86,606.05,0.945]
[1745579789831,1.37897572,606.85,606.05,0.945]
[1745579790027,2.51490808,606.84,606.05,0.945]
[1745579790232,1.37897572,606.83,606.05,0.945]
[1745579790427,1.37811477,606.82,606.05,0.945]
[1745579790627,1.37811477,606.81,606.05,0.945]
[1745579790832,1.37811477,606.8,606.05,0.945]
[1745579791032,1.37811477,606.79,606.05,0.945]
[1745579791231,1.37811477,606.78,606.05,0.945]
[1745579791430,1.37811477,606.77,606.05,0.945]
[1745579791631,2.51404713,606.76,606.05,0.945]
[1745579791833,2.51404713,606.75,606.05,0.945]
[1745579792031,1.37811477,606.74,606.05,0.945]
[1745579792229,1.37811477,606.73,606.05,0.945]
[1745579792430,1.37811477,606.72,606.05,0.945]
[1745579792633,2.51404713,606.71,606.05,0.945]
[1745579792929,1.37811477,606.7,606.05,0.945]
[1745579793129,2.51404713,606.69,606.05,0.945]
[1745579793335,1.37811477,606.68,606.05,0.945]
[1745579793633,2.51404713,606.67,606.05,0.945]
[1745579793835,1.37811477,606.66,606.05,0.945]
[1745579794028,2.51404713,606.65,606.05,0.945]
[1745579794332,1.37811477,606.64,606.05,0.945]
[1745579794634,2.51404713,606.63,606.05,0.945]
[1745579794831,1.13593236,606.62,606.05,0.945]
[1745579795439,1.13593236,606.61,606.05,0.945]
[1745579795734,1.13593236,606.6,606.05,0.945]
[1745579796436,1.13593236,606.59,606.05,0.945]
[1745579796731,1.13593236,606.58,606.05,0.945]
[1745579797338,1.13593236,606.57,606.05,0.945]
[1745579798734,1.13593236,606.56,606.05,0.945]
[1745579799037,1.13593236,606.55,606.05,0.945]
[1745579799641,1.13593236,606.54,606.05,0.945]
[1745579799940,1.13593236,606.53,606.05,0.945]
[1745579800539,1.13593236,606.52,606.05,0.945]
[1745579800939,1.13593236,606.51,606.05,0.945]
[1745579801839,1.13593236,606.5,606.05,0.945]
[1745579802438,1.13593236,606.49,606.05,0.945]
[1745579802744,1.13593236,606.48,606.05,0.945]
[1745579803139,1.13593236,606.47,606.05,0.945]
[1745579804040,1.13593236,606.46,606.06,0.30284433]
[1745579804843,1.25820987,608.36,606.06,0.30284433]
[1745579805040,1.37756614,608.35,606.06,0.30284433]
[1745579805235,1.37756614,608.34,606.06,0.30284433]
[1745579805434,1.37756614,608.33,606.06,0.30284433]
[1745579805639,2.51570869,608.32,606.06,0.30284433]
[1745579805839,1.25820987,608.16,606.05,0.945]
[1745579806036,1.37756614,608.15,606.05,0.945]
[1745579806241,1.37756614,608.14,606.05,0.945]
[1745579806437,2.51570869,608.13,606.05,0.945]
[1745579806745,1.37756614,608.12,606.05,0.945]
[1745579806937,1.37756614,608.11,606.05,0.945]
[1745579807136,1.37756614,608.1,606.05,0.945]
[1745579807339,1.37756614,608.09,606.05,0.945]
[1745579807542,1.37756614,608.08,606.05,0.945]
[1745579807744,1.37756614,608.07,606.05,0.945]
[1745579808043,2.51570869,608.06,606.05,0.945]
[1745579808244,1.37756614,608.05,606.05,0.945]
[1745579808443,1.37756614,608.04,606.05,0.945]
[1745579808638,1.37756614,608.03,606.05,0.945]
[1745579808838,2.51570869,608.02,606.05,0.945]
[1745579809039,1.37756614,608.01,606.05,0.945]
[1745579809243,1.37756614,608.0,606.05,0.945]
[1745579809443,1.37756614,607.99,606.05,0.945]
[1745579809642,1.37756614,607.98,606.05,0.945]
[1745579809847,2.51570869,607.97,606.05,0.945]
[1745579810041,1.37756614,607.96,606.05,0.945]
[1745579810244,2.51570869,607.95,606.05,0.945]
[1745579810445,1.37756614,607.94,606.05,0.945]
[1745579810646,1.37756614,607.93,606.05,0.945]
[1745579810942,1.37756614,607.92,606.05,0.945]
[1745579811147,2.51570869,607.91,606.05,0.945]
[1745579811344,1.37756614,607.9,606.05,0.945]
[1745579811641,1.37756614,607.89,606.05,0.945]
[1745579811845,1.37756614,607.88,606.05,0.945]
[1745579812043,1.37756614,607.87,606.05,0.945]
[1745579812242,2.51570869,607.86,606.05,0.945]
[1745579812443,1.37747559,607.85,606.05,0.945]
[1745579812645,1.37747559,607.84,606.05,0.945]
[1745579812846,1.37747559,607.83,606.05,0.945]
[1745579813047,1.37747559,607.82,606.05,0.945]
[1745579813246,1.37747559,607.81,606.05,0.945]
[1745579813443,1.37747559,607.8,606.05,0.945]
[1745579813648,1.37747559,607.79,606.05,0.945]
[1745579813850,2.51561814,607.78,606.05,0.945]
[1745579814047,2.51561814,607.77,606.05,0.945]
[1745579814248,1.37725615,607.76,606.05,0.945]
[1745579814449,1.37725615,607.75,606.05,0.945]
[1745579814651,2.5153987,607.74,606.05,0.945]
[1745579814851,2.5153987,607.73,606.05,0.945]
[1745579815052,2.5153987,607.72,606.05,1.962]
[1745579815355,2.5153987,607.71,606.05,1.962]
[1745579815547,1.37725615,607.7,606.05,1.962]
[1745579815748,1.37725615,607.69,606.05,1.962]
[1745579815951,2.5153987,607.68,606.05,1.962]
[1745579816146,1.37725615,607.67,606.05,1.962]
[1745579816350,1.37725615,607.66,606.05,1.962]
[1745579816653,2.5153987,607.65,606.05,1.962]
[1745579816857,1.37725615,607.64,606.05,1.962]
[1745579817154,2.5153987,607.63,606.05,1.962]
[1745579817455,1.37725615,607.62,606.05,1.962]
[1745579817657,2.5153987,607.61,606.05,1.962]
[1745579817851,1.13814255,607.61,606.05,1.962]
[1745579818056,1.37574696,607.6,606.05,1.962]
[1745579818358,1.37574696,607.59,606.05,2.967]
[1745579818552,1.37574696,607.58,606.05,2.967]
[1745579818756,2.51388951,607.57,606.05,2.967]
[1745579819054,1.37574696,607.56,606.05,2.967]
[1745579819252,1.37574696,607.55,606.05,2.967]
[1745579819452,1.37574696,607.54,606.05,2.967]
[1745579819657,1.13814255,607.55,606.05,2.967]
[1745579819658,1.37574696,607.53,606.05,2.967]
[1745579819856,2.51388951,607.52,606.05,2.967]
[1745579820157,1.37574696,607.51,606.05,2.967]
[1745579820353,1.37574696,607.5,606.05,2.967]
[1745579820554,1.37574696,607.49,606.05,2.967]
[1745579820750,2.51388951,607.48,606.05,2.967]
[1745579820957,1.37574696,607.47,606.05,2.967]
[1745579821156,1.37574696,607.46,606.05,2.967]
[1745579821353,1.37574696,607.45,606.05,2.967]
[1745579821557,1.37574696,607.44,606.05,2.967]
[1745579821752,1.37574696,607.43,606.05,2.967]
[1745579821952,1.37574696,607.42,606.05,2.967]
[1745579822155,1.37574696,607.41,606.05,2.967]
[1745579822357,2.51388951,607.4,606.05,2.967]
[1745579822552,1.37574696,607.39,606.05,2.967]
[1745579822751,2.51388951,607.38,606.05,2.967]
[1745579823052,1.37574696,607.37,606.05,2.967]
[1745579823254,1.37574696,607.36,606.05,2.967]
[1745579823453,1.37574696,607.35,606.05,2.967]
[1745579823658,1.37574696,607.34,606.05,2.967]
[1745579823960,1.37574696,607.33,606.05,2.967]
[1745579824152,2.51388951,607.32,606.05,2.967]
[1745579824357,1.37574696,607.31,606.05,2.967]
[1745579824554,1.37574696,607.3,606.05,2.967]
[1745579824754,1.37574696,607.29,606.05,2.967]
[1745579825058,1.37574696,607.28,606.05,2.967]
[1745579825258,1.37574696,607.27,606.05,2.967]
[1745579825466,1.37574696,607.26,606.05,2.967]
[1745579825655,1.37574696,607.25,606.05,2.967]
[1745579825856,1.37574696,607.24,606.05,4.253]
[1745579826057,1.37574696,607.23,606.05,4.253]
[1745579826256,1.37033354,607.22,606.05,4.253]
[1745579826454,1.13814255,607.25,606.05,4.253]
[1745579826455,1.37033354,607.21,606.05,4.253]
[1745579826760,2.50847609,607.2,606.05,4.253]
[1745579826960,1.37033354,607.19,606.05,4.253]
[1745579827260,2.50847609,607.18,606.05,4.253]
[1745579827461,1.37033354,607.17,606.05,4.253]
[1745579827761,2.50847609,607.16,606.05,4.253]
[1745579828060,1.37033354,607.15,606.05,4.253]
[1745579828262,2.50847609,607.14,606.05,4.253]
[1745579828465,1.37033354,607.13,606.05,4.253]
[1745579828660,2.50847609,607.12,606.05,4.253]
[1745579828957,1.37033354,607.11,606.05,4.253]
[1745579829161,1.37033354,607.1,606.05,4.253]
[1745579829361,1.37033354,607.09,606.05,4.253]
[1745579829561,1.37033354,607.08,606.05,4.253]
[1745579829886,2.50847609,607.07,606.05,4.253]
[1745579830061,1.37033354,607.06,606.05,4.253]
[1745579830259,2.50847609,607.05,606.05,4.253]
[1745579830461,1.37033354,607.04,606.05,4.253]
[1745579830660,1.37033354,607.03,606.05,4.253]
[1745579830859,2.50847609,607.02,606.05,4.253]
[1745579831163,2.50847609,607.01,606.05,4.253]
[1745579831362,1.37033354,607.0,606.05,4.253]
[1745579831563,1.37033354,606.99,606.05,4.253]
[1745579831765,2.50831351,606.98,606.05,4.253]
[1745579831968,1.37017096,606.97,606.05,4.253]
[1745579832165,1.37017096,606.96,606.05,4.253]
[1745579832365,2.50831351,606.95,606.05,4.253]
[1745579832561,1.37017096,606.94,606.05,4.253]
[1745579832760,1.37017096,606.93,606.05,4.253]
[1745579832962,1.37017096,606.92,606.05,4.253]
[1745579833169,2.50831351,606.91,606.05,4.253]
[1745579833465,1.37017096,606.9,606.05,4.253]
[1745579833662,2.50831351,606.89,606.05,4.253]
[1745579833862,1.37017096,606.88,606.05,4.253]
[1745579834166,2.50831351,606.87,606.05,4.253]
[1745579834366,1.37017096,606.86,606.05,4.253]
[1745579834662,2.50831351,606.85,606.05,4.253]
[1745579834867,1.37017096,606.84,606.05,4.253]
[1745579835066,2.50831351,606.83,606.05,4.253]
[1745579835266,1.37017096,606.82,606.05,4.253]
[1745579835566,1.36987927,606.81,606.05,4.253]
[1745579835766,2.50802182,606.8,606.05,4.253]
[1745579835964,1.36987927,606.79,606.05,4.253]
[1745579836176,2.50802182,606.78,606.05,4.253]
[1745579836460,1.36987927,606.77,606.05,4.253]
[1745579836666,1.36987927,606.76,606.05,4.253]
[1745579836868,1.36987927,606.75,606.05,4.253]
[1745579837066,1.36987927,606.74,606.05,4.253]
[1745579837263,2.50802182,606.73,606.05,4.253]
[1745579837467,1.36987927,606.72,606.05,4.253]
[1745579837662,1.36987927,606.71,606.05,1.017]
[1745579837865,1.36987927,606.7,606.05,1.017]
[1745579838064,2.50802182,606.69,606.05,1.017]
[1745579838371,1.36987927,606.68,606.05,1.017]
[1745579838666,2.50802182,606.67,606.05,1.017]
[1745579838874,1.36987927,606.66,606.05,1.017]
[1745579839072,1.36987927,606.65,606.05,1.017]
[1745579839270,1.36987927,606.64,606.05,1.017]
[1745579839570,2.50802182,606.63,606.05,1.017]
[1745579839865,1.36987927,606.62,606.05,1.017]
[1745579840070,2.50802182,606.61,606.05,1.017]
[1745579840390,2.50802182,606.6,606.05,1.017]
[1745579840570,1.36987927,606.59,606.05,1.017]
[1745579840767,1.36987927,606.58,606.05,1.017]